bitfinex/quotes_BTCUSD_20241128
["timestamp","ask_amount","ask_price","bid_price","bid_amount"]
[1732794116612,6e-05,95186.0,95185.0,0.61619992]
[1732794117087,6e-05,95186.0,95185.0,0.40886061]
[1732794117344,0.00109248,95196.0,95195.0,0.10569203]
[1732794117588,0.00109248,95196.0,95195.0,0.36361977]
[1732794117796,0.00109248,95196.0,95195.0,0.34946149]
[1732794118044,0.00109248,95196.0,95195.0,0.8779778]
[1732794118285,0.00109248,95196.0,95195.0,0.83556028]
[1732794118520,0.00109248,95196.0,95195.0,1.03497315]
[1732794118749,0.00109248,95196.0,95195.0,1.08205441]
[1732794118972,0.00109248,95196.0,95195.0,1.09405441]
[1732794119199,0.00109248,95196.0,95195.0,1.08505441]
[1732794119648,0.00109248,95196.0,95195.0,0.84980613]
[1732794119879,0.00109248,95196.0,95195.0,0.8495981]
[1732794120094,0.00109248,95196.0,95195.0,0.86076324]
[1732794120524,0.00109248,95196.0,95195.0,0.9878248]
[1732794120764,0.00109248,95196.0,95195.0,1.0018248]
[1732794120979,0.00109248,95196.0,95195.0,0.87176324]
[1732794121225,0.00109248,95196.0,95195.0,1.1068718]
[1732794121456,0.00109248,95196.0,95195.0,0.87176324]
[1732794121691,0.00109248,95196.0,95195.0,1.1068718]
[1732794122410,0.00109248,95196.0,95195.0,0.76671624]
[1732794122824,0.00109248,95196.0,95195.0,0.4195784]
[1732794123913,0.00109248,95196.0,95195.0,0.3377784]
[1732794124388,0.00109248,95196.0,95195.0,0.68472242]
[1732794124638,0.00109248,95196.0,95195.0,0.82569957]
[1732794125084,0.0008613,95205.0,95196.0,0.15]
[1732794125310,0.0008613,95205.0,95197.0,0.12896823]
[1732794125539,0.0008613,95205.0,95198.0,0.02612302]
[1732794125775,0.0008613,95205.0,95199.0,0.12896823]
[1732794125995,0.0008613,95205.0,95200.0,0.02612302]
[1732794125996,0.00556891,95204.0,95200.0,0.02612302]
[1732794126233,0.00556891,95204.0,95201.0,0.12896823]
[1732794126474,0.0008613,95205.0,95202.0,0.02612302]
[1732794126706,0.0008613,95205.0,95203.0,0.12896823]
[1732794126936,0.00556891,95204.0,95203.0,0.10284521]
[1732794127394,0.00556891,95204.0,95203.0,0.12896305]
[1732794127844,0.0008613,95205.0,95203.0,0.12896305]
[1732794128063,0.0008613,95205.0,95204.0,0.02611784]
[1732794128275,0.0008613,95205.0,95204.0,0.13082202]
[1732794130117,0.0008613,95205.0,95204.0,0.12896305]
[1732794130326,0.0008613,95205.0,95204.0,0.1389959]
[1732794130555,0.0008613,95205.0,95204.0,0.13196806]
[1732794130784,0.0008613,95205.0,95204.0,0.13382701]
[1732794131449,0.0008613,95205.0,95204.0,0.14182701]
[1732794131867,0.0008613,95205.0,95204.0,0.13996806]
[1732794132311,0.1058973,95205.0,95204.0,0.14061309]
[1732794132537,0.2289973,95205.0,95204.0,0.03776788]
[1732794135064,0.23554581,95205.0,95204.0,0.00768103]
[1732794135248,0.23454581,95205.0,95204.0,0.00768103]
[1732794135489,0.23554581,95205.0,95204.0,0.00768103]
[1732794136899,0.32380353,95205.0,95204.0,0.007036]
[1732794137147,0.210081,95202.0,95195.0,0.00064503]
[1732794137387,0.105046,95196.0,95195.0,0.00064503]
[1732794137614,0.105046,95196.0,95195.0,0.00768212]
[1732794137839,0.105046,95196.0,95195.0,0.01894298]
[1732794138072,0.11057711,95196.0,95195.0,0.01894298]
[1732794138982,0.00553111,95196.0,95195.0,0.01894298]
[1732794139206,0.105046,95196.0,95195.0,0.02194298]
[1732794139433,0.11057711,95196.0,95195.0,0.02194298]
[1732794140797,0.11057711,95196.0,95195.0,0.01894298]
[1732794141245,0.11057711,95196.0,95195.0,0.02394298]
[1732794141535,0.19712982,95196.0,95195.0,0.01829795]
[1732794141786,0.32542982,95196.0,95195.0,0.00703709]
[1732794142023,0.23887711,95196.0,95195.0,0.01067943]
[1732794142482,0.23887711,95196.0,95195.0,0.0219334]
[1732794142711,0.23887711,95196.0,95195.0,0.0189334]
[1732794143390,0.23887711,95196.0,95195.0,0.00064503]
[1732794143613,0.23887711,95196.0,95195.0,0.00767736]
[1732794143832,0.23887711,95196.0,95195.0,0.00703233]
[1732794144078,0.32578982,95196.0,95195.0,0.00703233]
[1732794144311,0.105048,95194.0,95193.0,0.00064503]
[1732794144757,0.11052096,95194.0,95193.0,0.00064503]
[1732794144992,0.11052096,95194.0,95193.0,0.00767597]
[1732794145461,0.11052096,95194.0,95193.0,0.00767478]
[1732794146138,0.11052096,95194.0,95193.0,0.01067478]
[1732794146371,0.19742966,95194.0,95193.0,0.003]
[1732794147514,0.11052096,95194.0,95193.0,0.00364503]
[1732794148659,0.11052096,95194.0,95193.0,0.01067159]
[1732794151047,0.11052096,95194.0,95193.0,0.01002656]
[1732794151261,0.11052096,95194.0,95193.0,0.003]
[1732794151490,0.11052096,95194.0,95193.0,0.00364503]
[1732794151948,0.11052096,95194.0,95193.0,0.003]
[1732794152386,0.11052096,95194.0,95193.0,0.00364503]
[1732794152866,0.11052096,95194.0,95193.0,0.003]
[1732794153324,0.11052096,95194.0,95193.0,0.01002819]
[1732794153559,0.11052096,95194.0,95193.0,0.01002824]
[1732794153774,0.11052096,95194.0,95193.0,0.01067327]
[1732794154950,0.11052096,95194.0,95193.0,0.01002824]
[1732794155431,0.11052096,95194.0,95193.0,0.01067327]
[1732794155682,0.11052096,95194.0,95193.0,0.01002824]
[1732794156364,0.11052096,95194.0,95193.0,0.01067327]
[1732794157056,0.11052096,95194.0,95193.0,0.01239567]
[1732794158259,0.11052096,95194.0,95193.0,0.12649385]
[1732794158728,0.11052096,95194.0,95193.0,0.13905137]
[1732794160173,0.11052096,95194.0,95193.0,0.13905776]
[1732794161851,0.105048,95194.0,95193.0,0.13905776]
[1732794165402,0.10476962,95194.0,95193.0,0.13906912]
[1732794166105,0.0008612,95196.0,95195.0,0.00064503]
[1732794166315,0.0008612,95196.0,95195.0,0.22999987]
[1732794166533,0.0008612,95196.0,95195.0,0.23939372]
[1732794167400,0.0008612,95196.0,95195.0,0.25065621]
[1732794167610,0.0008612,95196.0,95195.0,0.23939372]
[1732794168244,0.0008612,95196.0,95195.0,0.13434672]
[1732794168735,0.0008612,95196.0,95195.0,0.25056394]
[1732794168952,0.0008612,95196.0,95195.0,0.59996628]
[1732794169166,0.0008613,95205.0,95204.0,0.00064503]
[1732794169387,0.0008613,95205.0,95204.0,0.23938372]
[1732794169598,0.0008613,95205.0,95204.0,0.58660565]
[1732794169851,0.0008613,95205.0,95204.0,0.77460717]
[1732794170063,0.0008613,95205.0,95204.0,0.58660565]
[1732794170307,0.0008613,95205.0,95204.0,0.7745742]
[1732794170523,0.0008613,95205.0,95204.0,0.77454601]
[1732794171690,0.0008613,95205.0,95204.0,0.78454601]
[1732794171926,0.0008613,95205.0,95204.0,0.89144601]
[1732794172164,0.0008613,95205.0,95204.0,0.89944601]
[1732794173130,0.0008613,95205.0,95204.0,0.71147746]
[1732794173341,0.0008613,95205.0,95204.0,0.94653934]
[1732794173797,0.0008613,95205.0,95204.0,0.71147746]
[1732794174014,0.0008613,95205.0,95204.0,0.72186459]
[1732794174244,0.0008613,95205.0,95204.0,0.9462952]
[1732794174691,0.0008613,95205.0,95204.0,0.94629478]
[1732794174966,0.0008613,95205.0,95204.0,0.71142529]
[1732794175406,0.0008613,95205.0,95204.0,0.94626851]
[1732794175855,0.0008613,95205.0,95204.0,0.75872529]
[1732794176361,0.0008613,95205.0,95204.0,0.99353842]
[1732794176603,0.0008613,95205.0,95204.0,0.75872529]
[1732794176818,0.0008613,95205.0,95204.0,0.74772529]
[1732794177036,0.098857,95227.0,95205.0,0.01]
[1732794177264,0.0004,95229.0,95212.0,0.09392094]
[1732794177492,0.0004,95229.0,95224.0,0.105014]
[1732794177702,0.0004,95229.0,95225.0,0.21486807]
[1732794177938,0.0004,95229.0,95226.0,0.01822455]
[1732794178162,0.0004,95229.0,95228.0,0.105011]
[1732794178390,0.0004,95229.0,95228.0,0.12509403]
[1732794179302,0.0004,95229.0,95228.0,0.15809403]
[1732794179731,0.0004,95229.0,95228.0,0.15909403]
[1732794179949,0.0004,95229.0,95228.0,0.25301497]
[1732794180205,0.0004,95229.0,95228.0,0.25015649]
[1732794180686,0.0004,95229.0,95228.0,0.01820156]
[1732794180912,0.0004,95229.0,95228.0,0.12321256]
[1732794181147,0.0004,95229.0,95228.0,0.12486015]
[1732794181367,0.0012613,95229.0,95228.0,0.22770536]
[1732794181610,0.0012613,95229.0,95228.0,0.4478535]
[1732794181827,0.0012613,95229.0,95228.0,0.48801099]
[1732794182059,0.0012613,95229.0,95228.0,0.86928175]
[1732794182281,0.0012613,95229.0,95228.0,0.687462]
[1732794182499,0.0012613,95229.0,95228.0,0.34145777]
[1732794182771,0.0012613,95229.0,95228.0,0.33645777]
[1732794183006,0.0012613,95229.0,95228.0,0.34543965]
[1732794183221,0.0012613,95229.0,95228.0,0.33443965]
[1732794183882,0.0012613,95229.0,95228.0,0.34842229]
[1732794184393,0.005,95245.0,95233.0,0.01]
[1732794184603,0.005,95245.0,95236.0,0.210004]
[1732794184813,0.005,95245.0,95241.0,0.104996]
[1732794185050,0.005,95245.0,95242.0,0.02004156]
[1732794185295,0.005,95245.0,95243.0,0.01818344]
[1732794185510,0.005,95245.0,95244.0,0.11384423]
[1732794185735,0.005,95245.0,95244.0,0.12317644]
[1732794186168,0.005,95245.0,95244.0,0.12503452]
[1732794187529,0.005,95245.0,95244.0,0.02004152]
[1732794187979,0.005,95245.0,95244.0,0.01818344]
[1732794188195,0.11477145,95245.0,95244.0,0.02718344]
[1732794188435,0.00977945,95245.0,95244.0,0.03218344]
[1732794188887,0.00977945,95245.0,95244.0,0.13502865]
[1732794191160,0.005,95245.0,95244.0,0.13502865]
[1732794191403,0.00977945,95245.0,95244.0,0.13502865]
[1732794191651,0.005,95245.0,95244.0,0.13502865]
[1732794191912,0.005,95245.0,95244.0,0.24002165]
[1732794192402,0.005,95245.0,95244.0,0.25399521]
[1732794192855,0.0058613,95245.0,95244.0,0.27302165]
[1732794193534,0.0058613,95245.0,95244.0,0.26402165]
[1732794194008,0.0058613,95245.0,95244.0,0.27302165]
[1732794194295,0.0058613,95245.0,95244.0,0.26402165]
[1732794194533,0.0058613,95245.0,95244.0,0.25902165]
[1732794194770,0.0058613,95245.0,95244.0,0.26402165]
[1732794195230,0.00546103,95245.0,95244.0,0.25902165]
[1732794195707,0.00546103,95245.0,95244.0,0.26402165]
[1732794195914,0.00546103,95245.0,95244.0,0.27302165]
[1732794196561,0.00546103,95245.0,95244.0,0.24002165]
[1732794197886,0.104972,95263.0,95255.0,0.104981]
[1732794198158,0.0798,95264.0,95256.0,0.23999857]
[1732794198376,0.00484105,95261.0,95258.0,0.104977]
[1732794198603,0.00484105,95261.0,95259.0,0.03217336]
[1732794198841,0.0798,95264.0,95260.0,0.03217336]
[1732794199054,0.0798,95264.0,95261.0,0.03217336]
[1732794199277,0.0798,95264.0,95261.0,0.13501857]
[1732794199551,0.0490619,95265.0,95261.0,0.13501857]
[1732794199732,0.0490619,95265.0,95261.0,0.13649646]
[1732794199941,0.0490619,95265.0,95261.0,0.24147046]
[1732794200170,0.0008619,95265.0,95261.0,0.25560807]
[1732794200397,0.0008619,95265.0,95261.0,0.15063407]
[1732794200628,0.0008619,95265.0,95261.0,0.13502565]
[1732794201289,0.104972,95264.0,95261.0,0.13502565]
[1732794201528,0.0008619,95265.0,95261.0,0.13502565]
[1732794201529,0.0008619,95265.0,95261.0,0.13902565]
[1732794201759,0.104972,95263.0,95262.0,0.03218044]
[1732794202282,0.104972,95263.0,95262.0,0.13502565]
[1732794203845,0.104972,95263.0,95262.0,0.14202565]
[1732794204054,0.0008619,95265.0,95262.0,0.13502565]
[1732794204276,0.0008619,95265.0,95256.0,0.00087364]
[1732794204277,0.0008619,95265.0,95263.0,0.13502565]
[1732794204493,0.0008619,95265.0,95264.0,0.03218044]
[1732794204732,0.0008619,95265.0,95264.0,0.13502565]
[1732794204949,0.0008619,95265.0,95264.0,0.13649286]
[1732794205163,0.0008619,95265.0,95264.0,0.24146386]
[1732794205391,0.0004,95269.0,95265.0,0.104969]
[1732794205611,0.0004,95269.0,95266.0,0.03218044]
[1732794205857,0.0004,95269.0,95267.0,0.03218044]
[1732794206093,0.0004,95269.0,95268.0,0.03218044]
[1732794206304,0.0004,95269.0,95268.0,0.13714744]
[1732794206538,0.0004,95269.0,95268.0,0.13819281]
[1732794207903,0.0004,95269.0,95268.0,0.21649281]
[1732794208119,0.0004,95269.0,95268.0,0.21544744]
[1732794209000,0.0004,95269.0,95268.0,0.21844744]
[1732794209224,0.0004,95269.0,95268.0,0.14014744]
[1732794209438,0.0004,95269.0,95268.0,0.13714744]
[1732794209934,0.0004,95269.0,95268.0,0.15514744]
[1732794210148,0.0004,95269.0,95268.0,0.14714744]
[1732794210378,0.0004,95269.0,95268.0,0.1571946]
[1732794211064,0.0004,95269.0,95268.0,0.1601946]
[1732794211984,0.0004,95269.0,95268.0,0.17148053]
[1732794212903,0.0008618,95280.0,95279.0,0.104954]
[1732794213126,0.0008618,95280.0,95279.0,0.12314147]
[1732794213338,0.0008618,95280.0,95279.0,0.12418927]
[1732794214465,0.0008618,95280.0,95279.0,0.12453721]
[1732794215394,0.0008618,95280.0,95279.0,0.02458321]
[1732794215810,0.0008618,95280.0,95279.0,0.140882]
[1732794216286,0.0008618,95280.0,95279.0,0.24372721]
[1732794216500,0.0008618,95280.0,95279.0,0.24233147]
[1732794216947,0.0008618,95280.0,95279.0,0.13737747]
[1732794217391,0.0008618,95280.0,95279.0,0.24343406]
[1732794217637,0.0008618,95280.0,95279.0,0.24233147]
[1732794218416,0.0008618,95280.0,95279.0,0.13737747]
[1732794218647,0.0008618,95280.0,95279.0,0.24233147]
[1732794220044,0.0008618,95280.0,95279.0,0.2421991]
[1732794222578,0.0008618,95280.0,95279.0,0.2521991]
[1732794226171,0.0008618,95280.0,95279.0,0.24525541]
[1732794226387,0.0008618,95280.0,95279.0,0.234144]
[1732794226625,0.0008618,95280.0,95279.0,0.25220142]
[1732794227088,0.005,95288.0,95279.0,0.25220142]
[1732794227089,0.005,95288.0,95287.0,0.09462972]
[1732794227318,0.005,95288.0,95287.0,0.10542821]
[1732794227527,0.00990103,95288.0,95287.0,0.18458351]
[1732794227761,0.005,95288.0,95287.0,0.15535405]
[1732794228008,0.005,95288.0,95287.0,0.12612459]
[1732794228259,0.00171938,95287.0,95286.0,0.09463072]
[1732794228487,0.00171938,95287.0,95286.0,0.09940645]
[1732794228723,0.00171938,95287.0,95286.0,0.17856275]
[1732794228936,0.00171938,95287.0,95286.0,0.0529832]
[1732794229168,0.00171938,95287.0,95286.0,0.13199738]
[1732794229382,0.00171938,95287.0,95286.0,0.11998959]
[1732794229611,0.00171938,95287.0,95286.0,0.11185239]
[1732794229822,0.00171938,95287.0,95286.0,0.0877532]
[1732794230047,0.00171938,95286.0,95285.0,0.10322862]
[1732794230262,0.00171938,95286.0,95285.0,0.18028313]
[1732794230495,0.00171938,95286.0,95285.0,0.18372189]
[1732794230775,0.00171938,95286.0,95285.0,0.14417615]
[1732794231013,0.00171938,95286.0,95285.0,0.19543996]
[1732794231273,0.00171938,95286.0,95285.0,0.09080955]
[1732794231518,0.00171938,95286.0,95285.0,0.17340561]
[1732794231816,0.00171938,95286.0,95285.0,0.14689553]
[1732794232026,0.00171938,95286.0,95285.0,0.11494669]
[1732794232250,0.00171938,95286.0,95285.0,0.15404198]
[1732794232490,0.00171938,95286.0,95284.0,0.16]
[1732794232729,0.00171938,95286.0,95285.0,0.26112583]
[1732794232954,0.00171938,95286.0,95285.0,0.20435445]
[1732794233186,0.00171938,95286.0,95285.0,0.0907542]
[1732794233424,0.00171938,95286.0,95285.0,0.003]
[1732794233657,0.00171938,95286.0,95285.0,0.19956375]
[1732794233888,0.00171938,95286.0,95285.0,0.19656375]
[1732794234119,0.00171938,95286.0,95285.0,0.16217615]
[1732794234412,0.00171938,95286.0,95285.0,0.14498235]
[1732794234668,0.00171938,95286.0,95285.0,0.19371569]
[1732794234906,0.00171938,95286.0,95285.0,0.57267507]
[1732794235148,0.005,95288.0,95286.0,0.15]
[1732794235385,0.005,95288.0,95287.0,0.24462972]
[1732794235615,0.005,95288.0,95287.0,0.25322662]
[1732794235834,0.005,95288.0,95287.0,0.24346803]
[1732794236069,0.005,95288.0,95287.0,0.21767733]
[1732794236340,0.005,95288.0,95287.0,0.25928113]
[1732794236574,0.005,95288.0,95287.0,0.46055868]
[1732794236820,0.005,95288.0,95287.0,0.25133229]
[1732794237043,0.005,95288.0,95287.0,0.57410344]
[1732794237262,0.005,95288.0,95287.0,0.73701426]
[1732794237476,0.005,95288.0,95287.0,0.8605045]
[1732794237706,0.0004,95289.0,95288.0,0.11043492]
[1732794237935,0.0004,95289.0,95288.0,0.53743888]
[1732794238164,0.0004,95289.0,95288.0,0.69397376]
[1732794238382,0.0004,95289.0,95288.0,0.64926988]
[1732794238601,4e-05,95300.0,95288.0,0.64926988]
[1732794238602,4e-05,95300.0,95291.0,0.24118596]
[1732794238817,4e-05,95300.0,95291.0,0.24424831]
[1732794239032,4e-05,95300.0,95291.0,0.31652109]
[1732794239279,4e-05,95300.0,95291.0,0.30276605]
[1732794239543,4e-05,95300.0,95291.0,0.31187089]
[1732794239758,4e-05,95300.0,95291.0,0.27404453]
[1732794239986,4e-05,95300.0,95291.0,0.26953445]
[1732794240193,4e-05,95300.0,95291.0,0.23686623]
[1732794240426,4e-05,95300.0,95291.0,0.22998871]
[1732794240670,4e-05,95300.0,95291.0,0.30728871]
[1732794240940,4e-05,95300.0,95291.0,0.31428836]
[1732794241170,4e-05,95300.0,95291.0,0.5946406]
[1732794241384,0.0018619,95292.0,95291.0,0.33485987]
[1732794241603,0.0018619,95292.0,95291.0,0.5944144]
[1732794241815,4e-05,95300.0,95291.0,0.5944144]
[1732794241816,4e-05,95300.0,95299.0,0.0877382]
[1732794242059,4e-05,95300.0,95299.0,0.24435423]
[1732794242293,4e-05,95300.0,95299.0,0.24161963]
[1732794242501,4e-05,95300.0,95299.0,0.1328062]
[1732794242713,4e-05,95300.0,95299.0,0.25956688]
[1732794242927,4e-05,95300.0,95299.0,0.30837928]
[1732794243174,4e-05,95300.0,95297.0,0.20299248]
[1732794243386,4e-05,95300.0,95299.0,0.00156124]
[1732794243624,4e-05,95300.0,95299.0,0.08258006]
[1732794243878,4e-05,95300.0,95299.0,0.09461572]
[1732794244111,0.01,95337.0,95299.0,0.0477]
[1732794244325,0.02240026,95341.0,95308.0,0.07878374]
[1732794244550,0.00181934,95311.0,95310.0,0.2358261]
[1732794244769,0.02130484,95324.0,95312.0,0.20619732]
[1732794245015,0.00181934,95313.0,95312.0,0.4556573]
[1732794245922,0.00131934,95313.0,95312.0,0.42108984]
[1732794246171,0.00131934,95313.0,95312.0,0.08308592]
[1732794246381,0.00181934,95312.0,95311.0,0.13734129]
[1732794246614,0.00181934,95312.0,95311.0,0.24226029]
[1732794246852,0.00181934,95312.0,95311.0,0.20405415]
[1732794247078,0.00181934,95312.0,95311.0,0.10705413]
[1732794247368,0.00181934,95312.0,95311.0,0.01123183]
[1732794247587,0.00181934,95312.0,95311.0,0.09977677]
[1732794247797,0.00181934,95312.0,95308.0,0.20802466]
[1732794248008,0.00181934,95312.0,95311.0,0.1028223]
[1732794248235,0.00181934,95312.0,95311.0,0.1118223]
[1732794248463,0.00181934,95312.0,95311.0,0.29136751]
[1732794248709,0.02130484,95324.0,95312.0,0.18982426]
[1732794248929,0.02130484,95324.0,95323.0,0.15]
[1732794249143,0.02130484,95324.0,95323.0,0.2367126]
[1732794249358,0.02130484,95324.0,95321.0,0.19707962]
[1732794249575,0.00181934,95323.0,95321.0,0.19707962]
[1732794249830,0.00181934,95323.0,95322.0,0.07814414]
[1732794250079,0.00181934,95323.0,95317.0,0.209825]
[1732794250080,0.02130484,95321.0,95320.0,0.10127032]
[1732794250296,0.02130484,95321.0,95318.0,0.20254564]
[1732794250544,0.02130484,95321.0,95318.0,0.1825329]
[1732794250754,0.02130484,95321.0,95320.0,0.104909]
[1732794251406,0.02130484,95321.0,95320.0,0.25562395]
[1732794251618,0.02130484,95321.0,95320.0,0.254909]
[1732794251862,0.02130484,95321.0,95319.0,0.15]
[1732794252092,0.02130484,95321.0,95317.0,0.20667261]
[1732794252312,0.02130484,95321.0,95320.0,0.09399296]
[1732794252522,0.02130484,95321.0,95320.0,0.10308966]
[1732794252739,0.02130484,95321.0,95318.0,0.19344894]
[1732794252740,0.02130484,95321.0,95318.0,0.1882908]
[1732794252963,0.14650484,95321.0,95318.0,0.18297452]
[1732794253181,0.14650484,95321.0,95320.0,0.09522609]
[1732794253419,0.00171938,95305.0,95301.0,0.20298348]
[1732794253698,0.00171938,95305.0,95304.0,0.07225878]
[1732794253940,0.00171938,95304.0,95303.0,0.07741793]
[1732794254175,0.00171938,95303.0,95301.0,0.08744421]
[1732794254392,0.0772,95302.0,95301.0,0.10493]
[1732794254607,0.00171938,95303.0,95302.0,0.104929]
[1732794255695,0.00171938,95303.0,95302.0,0.254929]
[1732794256840,0.00171938,95303.0,95302.0,0.259929]
[1732794257282,0.00171938,95303.0,95302.0,0.268929]
[1732794257283,0.00271938,95303.0,95302.0,0.268929]
[1732794257562,0.00171938,95303.0,95302.0,0.259929]
[1732794257794,0.00271938,95303.0,95302.0,0.27670308]
[1732794259138,0.001,95303.0,95302.0,0.27670308]
[1732794260743,0.1281,95303.0,95302.0,0.27670308]
[1732794260958,0.1281,95303.0,95302.0,0.12670308]
[1732794261631,0.23094521,95303.0,95302.0,0.02177408]
[1732794261906,0.24375521,95303.0,95302.0,0.02177408]
[1732794262386,0.23094521,95303.0,95302.0,0.12670308]
[1732794262630,0.1271,95303.0,95302.0,0.11270308]
[1732794262852,0.1271,95303.0,95302.0,0.11470308]
[1732794263097,0.1271,95303.0,95302.0,0.12270308]
[1732794263350,0.1271,95303.0,95302.0,0.114929]
[1732794263577,0.1271,95303.0,95302.0,0.12072528]
[1732794263821,0.22994521,95303.0,95302.0,0.12272528]
[1732794264053,0.22994521,95303.0,95302.0,0.01779628]
[1732794264534,0.22994521,95303.0,95302.0,0.11472528]
[1732794264780,0.23094521,95303.0,95302.0,0.01779628]
[1732794265028,0.23094521,95303.0,95302.0,0.12272528]
[1732794265766,0.23094521,95303.0,95302.0,0.01779628]
[1732794265992,0.23099521,95303.0,95302.0,0.01779628]
[1732794266457,0.23185661,95303.0,95302.0,0.01779628]
[1732794266701,0.23185661,95303.0,95302.0,0.01]
[1732794266936,0.23185661,95303.0,95302.0,0.01780324]
[1732794268147,0.24185661,95303.0,95302.0,0.01780324]
[1732794268611,0.27753487,95303.0,95302.0,0.01780324]
[1732794269853,0.24185661,95303.0,95302.0,0.01780324]
[1732794273446,0.37978461,95303.0,95302.0,0.01780324]
[1732794273658,0.147929,95302.0,95301.0,0.0317228]
[1732794273870,0.38049614,95302.0,95301.0,0.0317228]
[1732794274103,0.37817421,95302.0,95301.0,0.0317228]
[1732794274348,0.48100567,95302.0,95301.0,0.0317228]
[1732794275037,0.48200567,95302.0,95301.0,0.0317228]
[1732794275735,0.37917421,95302.0,95301.0,0.0317228]
[1732794275958,0.27424521,95302.0,95301.0,0.0317228]
[1732794276186,0.37917421,95302.0,95301.0,0.0317228]
[1732794276397,0.38217421,95302.0,95301.0,0.0317228]
[1732794277261,0.37917421,95302.0,95301.0,0.0317228]
[1732794277922,0.37817421,95302.0,95301.0,0.0317228]
[1732794278645,0.41867053,95302.0,95301.0,0.0317228]
[1732794279096,0.25324521,95302.0,95301.0,0.0317228]
[1732794280394,0.25124521,95302.0,95301.0,0.0317228]
[1732794281066,0.25024521,95302.0,95301.0,0.0317228]
[1732794281955,0.25224521,95302.0,95301.0,0.0317228]
[1732794282403,0.25024521,95302.0,95301.0,0.0317228]
[1732794282872,0.25224521,95302.0,95301.0,0.0317228]
[1732794283334,0.25024521,95302.0,95301.0,0.0317228]
[1732794283772,0.25224521,95302.0,95301.0,0.0317228]
[1732794284430,0.44016106,95302.0,95301.0,0.0317228]
[1732794284949,0.44016106,95302.0,95301.0,0.0327228]
[1732794286497,0.38017421,95302.0,95301.0,0.0327228]
[1732794289108,0.25224521,95302.0,95301.0,0.0327228]
[1732794289549,0.35717421,95302.0,95301.0,0.0327228]
[1732794292510,0.25224521,95302.0,95301.0,0.0327228]
[1732794292736,0.35717421,95302.0,95301.0,0.0327228]
[1732794293374,0.4010397,95302.0,95301.0,0.04053667]
[1732794293585,0.4010397,95302.0,95301.0,0.0327228]
[1732794293815,0.35717421,95302.0,95301.0,0.04053827]
[1732794294029,0.35717421,95302.0,95301.0,0.04053826]
[1732794294245,0.35717421,95302.0,95301.0,0.0327228]
[1732794295559,0.25224521,95302.0,95301.0,0.0327228]
[1732794295776,0.35517421,95302.0,95301.0,0.0317228]
[1732794295990,0.25224521,95302.0,95301.0,0.0317228]
[1732794296202,0.24224521,95302.0,95301.0,0.0317228]
[1732794296455,0.25024521,95302.0,95301.0,0.0317228]
[1732794296900,0.25224521,95302.0,95301.0,0.0317228]
[1732794298234,0.43606927,95302.0,95301.0,0.0317228]
[1732794298937,0.35717421,95302.0,95301.0,0.0287288]
[1732794300546,0.25224521,95302.0,95301.0,0.0287288]
[1732794300989,0.25310661,95302.0,95301.0,0.0287288]
[1732794301206,0.35803561,95302.0,95301.0,0.0287288]
[1732794302107,0.43701781,95302.0,95301.0,0.0287288]
[1732794302538,0.46001781,95302.0,95301.0,0.0287288]
[1732794306134,0.46001781,95302.0,95301.0,0.0017228]
[1732794306377,0.01,95292.0,95291.0,0.0017228]
[1732794306644,0.38058521,95292.0,95291.0,0.0017228]
[1732794306889,0.46161833,95292.0,95291.0,0.0017228]
[1732794307790,0.38858521,95292.0,95291.0,0.0027228]
[1732794308252,0.40980097,95292.0,95291.0,0.0027228]
[1732794309384,0.41580097,95292.0,95291.0,0.0037228]
[1732794309851,0.42985814,95292.0,95291.0,0.0037228]
[1732794311768,0.46947748,95292.0,95291.0,0.0037228]
[1732794312270,0.52453748,95292.0,95291.0,0.0037228]
[1732794312523,0.62947748,95292.0,95291.0,0.00093091]
[1732794312738,0.62947748,95292.0,95279.0,0.0017232]
[1732794312739,0.269553,95280.0,95279.0,0.0017232]
[1732794312962,0.37239821,95280.0,95279.0,0.0017232]
[1732794314085,0.37939821,95280.0,95279.0,0.0027232]
[1732794314339,0.37239821,95280.0,95279.0,0.0017232]
[1732794314827,0.37439821,95280.0,95279.0,0.0017232]
[1732794315510,0.38817258,95280.0,95279.0,0.0017232]
[1732794315739,0.36517258,95280.0,95279.0,0.0017232]
[1732794316188,0.36717258,95280.0,95279.0,0.0017232]
[1732794317587,0.26221958,95280.0,95279.0,0.0017232]
[1732794317805,0.36717258,95280.0,95279.0,0.0017232]
[1732794318316,0.36717258,95280.0,95279.0,0.0005761]
[1732794318529,0.26221958,95280.0,95279.0,0.0005761]
[1732794318755,0.12061958,95280.0,95279.0,0.1055301]
[1732794319226,0.14061958,95280.0,95279.0,0.1055301]
[1732794319444,0.14061958,95280.0,95279.0,0.0005761]
[1732794319693,0.40232414,95280.0,95279.0,0.0005761]
[1732794320154,0.40332414,95280.0,95279.0,0.0005761]
[1732794320392,0.39127258,95280.0,95279.0,0.0005761]
[1732794320610,0.39027258,95280.0,95279.0,0.0005761]
[1732794320844,0.39027258,95280.0,95279.0,0.0025761]
[1732794321100,0.12861958,95280.0,95279.0,0.0025761]
[1732794321316,0.13861958,95280.0,95279.0,0.0005761]
[1732794321541,0.14394195,95280.0,95279.0,0.0005761]
[1732794321754,0.29662875,95280.0,95279.0,0.0005761]
[1732794321967,0.29230638,95280.0,95279.0,0.0005761]
[1732794322449,0.12961958,95280.0,95279.0,0.1055301]
[1732794322684,0.21861958,95280.0,95279.0,0.0005761]
[1732794322889,0.21861958,95280.0,95279.0,0.1055301]
[1732794323107,0.11584521,95280.0,95279.0,0.1055301]
[1732794323341,0.10884521,95280.0,95279.0,0.1826301]
[1732794323827,0.00605,95280.0,95279.0,0.1826301]
[1732794324257,0.00205,95280.0,95279.0,0.1826301]
[1732794324480,0.10489521,95280.0,95279.0,0.1055301]
[1732794325121,0.10289521,95280.0,95279.0,0.1055301]
[1732794325592,0.10389521,95280.0,95279.0,0.1055301]
[1732794326060,0.11389521,95280.0,95279.0,0.0005761]
[1732794326307,0.23117053,95280.0,95279.0,0.0005761]
[1732794326546,0.22884821,95280.0,95279.0,0.0005761]
[1732794326984,0.35554821,95280.0,95279.0,0.0005761]
[1732794327207,0.37047045,95280.0,95279.0,0.0015761]
[1732794327428,0.28751745,95280.0,95279.0,0.0005761]
[1732794327658,0.26451745,95280.0,95279.0,0.0005761]
[1732794327895,0.36947045,95280.0,95279.0,0.0015761]
[1732794328560,0.26451745,95280.0,95279.0,0.0015761]
[1732794328799,0.13781745,95280.0,95279.0,0.0015761]
[1732794329006,0.13781745,95280.0,95279.0,0.1065301]
[1732794329675,0.13781745,95280.0,95279.0,0.0015761]
[1732794330398,0.15713631,95280.0,95279.0,0.0015761]
[1732794330649,0.26208931,95280.0,95279.0,0.0015761]
[1732794330872,0.41578931,95280.0,95279.0,0.0015761]
[1732794331752,0.0008615,95291.0,95281.0,0.01]
[1732794331981,0.0008615,95291.0,95279.0,0.16292131]
[1732794331982,0.0008615,95291.0,95290.0,0.104942]